bitfinex/quotes_SOLUSD_20250403
["timestamp","ask_amount","ask_price","bid_price","bid_amount"]
[1743711443918,45.75914033,115.63,115.59,8.6509]
[1743711444737,20.14216157,115.63,115.59,8.6509]
[1743711445034,28.79056157,115.63,115.59,8.6509]
[1743711445429,45.75914033,115.63,115.59,8.6509]
[1743711449140,20.14216157,115.63,115.59,16.96857876]
[1743711450437,36.96857876,115.65,115.6,16.96857876]
[1743711450637,20.0,115.67,115.63,16.96857876]
[1743711451016,20.0,115.67,115.64,16.96857876]
[1743711451214,28.6453,115.67,115.64,16.96857876]
[1743711451426,45.61387876,115.67,115.62,25.61737876]
[1743711451622,16.96857876,115.66,115.62,25.61737876]
[1743711452441,25.61457876,115.66,115.62,25.61737876]
[1743711452737,45.61417876,115.67,115.62,25.61737876]
[1743711452947,45.61417876,115.67,115.63,16.96857876]
[1743711453845,45.61417876,115.67,115.62,25.61717876]
[1743711454646,28.6456,115.67,115.63,16.96857876]
[1743711454826,45.61417876,115.67,115.63,25.61627876]
[1743711455442,45.61417876,115.67,115.63,8.6477]
[1743711456431,45.61417876,115.67,115.63,25.61627876]
[1743711458754,45.61417876,115.67,115.62,25.61717876]
[1743711458942,16.96857876,115.66,115.62,25.61717876]
[1743711460346,25.61477876,115.66,115.62,25.61717876]
[1743711460953,45.61417876,115.67,115.62,25.61717876]
[1743711463153,16.96857876,115.67,115.63,16.96857876]
[1743711463652,33.53564033,115.68,115.63,16.96857876]
[1743711464540,33.53564033,115.68,115.64,8.6475]
[1743711464742,0.14216157,115.7,115.66,16.96857876]
[1743711464939,36.96857876,115.71,115.66,16.96857876]
[1743711465531,17.11074033,115.72,115.68,16.96857876]
[1743711466150,0.14216157,115.72,115.68,16.96857876]
[1743711466452,17.11074033,115.72,115.68,16.96857876]
[1743711466630,25.75224033,115.72,115.68,8.6445]
[1743711467347,25.75224033,115.72,115.67,25.61337876]
[1743711467552,16.96857876,115.71,115.67,25.61337876]
[1743711468355,25.75224033,115.72,115.67,25.61337876]
[1743711468728,25.61097876,115.71,115.67,25.61337876]
[1743711472460,8.6424,115.71,115.67,25.61337876]
[1743711473441,16.96857876,115.7,115.65,25.61507876]
[1743711473644,16.96857876,115.69,115.65,25.61507876]
[1743711474253,16.96857876,115.69,115.64,27.12627876]
[1743711474840,16.96857876,115.68,115.64,27.12627876]
[1743711475061,16.96857876,115.69,115.64,27.12627876]
[1743711475254,25.61307876,115.69,115.64,27.12627876]
[1743711478380,16.96857876,115.67,115.63,16.96857876]
[1743711479346,28.78686157,115.68,115.63,16.96857876]
[1743711479546,25.61407876,115.67,115.63,25.61677876]
[1743711479866,25.61407876,115.67,115.63,16.96857876]
[1743711480041,25.61407876,115.67,115.62,25.61727876]
[1743711480444,16.96857876,115.66,115.62,25.61727876]
[1743711481145,25.61467876,115.66,115.62,25.61727876]
[1743711482167,45.61467876,115.66,115.62,25.61727876]
[1743711482471,36.96857876,115.66,115.62,25.61727876]
[1743711482646,20.0,115.66,115.62,25.61727876]
[1743711483062,18.79181043,115.68,115.64,16.96857876]
[1743711483063,20.0,115.68,115.64,16.96857876]
[1743711483266,136.0,115.69,115.65,16.96857876]
[1743711484364,136.0,115.69,115.64,25.61577876]
[1743711484365,16.96857876,115.68,115.64,25.61577876]
[1743711484571,16.96857876,115.68,115.64,8.6472]
[1743711484783,16.96857876,115.68,115.64,25.61577876]
[1743711485446,25.61317876,115.68,115.64,25.61577876]
[1743711486557,25.61317876,115.68,115.63,25.61677876]
[1743711487351,25.61317876,115.68,115.64,16.96857876]
[1743711488060,20.14216157,115.67,115.63,8.6482]
[1743711488259,37.11074033,115.67,115.63,8.6482]
[1743711488465,37.11074033,115.67,115.63,25.61677876]
[1743711489170,45.75644033,115.67,115.63,16.96857876]
[1743711489378,45.75644033,115.67,115.62,8.6486]
[1743711489572,16.96857876,115.66,115.62,8.6486]
[1743711489873,45.75644033,115.67,115.62,25.61717876]
[1743711490074,45.75644033,115.67,115.63,16.96857876]
[1743711490454,45.75644033,115.67,115.63,25.61677876]
[1743711491084,28.78786157,115.67,115.63,25.61677876]
[1743711491572,20.0,115.67,115.63,25.61677876]
[1743711491790,0.14216157,115.68,115.64,16.96857876]
[1743711492466,17.11074033,115.68,115.64,16.96857876]
[1743711492667,17.11074033,115.68,115.64,25.61547876]
[1743711493673,25.75524033,115.68,115.64,25.61547876]
[1743711494675,25.75524033,115.68,115.62,30.2704]
[1743711494878,25.75524033,115.68,115.63,16.96857876]
[1743711495895,25.75524033,115.68,115.63,25.61607876]
[1743711497193,25.75524033,115.68,115.64,16.96857876]
[1743711498152,25.75524033,115.68,115.63,16.96857876]
[1743711498358,25.75524033,115.68,115.64,8.6475]
[1743711499678,25.75524033,115.68,115.63,25.61637876]
[1743711500391,16.96857876,115.66,115.62,8.6486]
[1743711501394,34.6904,115.69,115.63,16.96857876]
[1743711501560,45.61257876,115.69,115.65,8.6467]
[1743711501867,36.96857876,115.69,115.65,8.6467]
[1743711502184,20.0,115.69,115.65,8.6467]
[1743711505190,28.6438,115.69,115.65,8.6467]
[1743711506093,20.0,115.69,115.65,8.6467]
[1743711510301,0.14216157,115.68,115.65,8.6467]
[1743711511099,20.0,115.69,115.65,8.6467]
[1743711512105,28.6438,115.69,115.65,8.6467]
[1743711512486,28.6438,115.69,115.64,8.6475]
[1743711513417,0.14216157,115.68,115.64,8.6475]
[1743711513715,17.11074033,115.68,115.64,8.6475]
[1743711513887,36.96857876,115.67,115.63,8.6482]
[1743711514612,45.61387876,115.67,115.62,30.2707]
[1743711515194,45.61387876,115.67,115.62,8.649]
[1743711515403,45.61387876,115.67,115.62,25.61757876]
[1743711517108,16.96857876,115.66,115.62,25.61757876]
[1743711520715,156.0,115.69,115.62,30.2715]
[1743711520900,20.0,115.71,115.67,16.96857876]
[1743711521109,18.52707876,115.72,115.68,16.96857876]
[1743711521611,18.52707876,115.72,115.67,16.96857876]
[1743711522196,16.96857876,115.72,115.68,16.96857876]
[1743711522400,20.0,115.75,115.72,8.6415]
[1743711522596,20.0,115.75,115.72,25.61007876]
[1743711522825,180.72857876,115.77,115.72,25.61007876]
[1743711523126,36.96857876,115.77,115.73,16.96857876]
[1743711523306,6.80549216,115.75,115.73,16.96857876]
[1743711524200,6.80549216,115.75,115.72,25.61007876]
[1743711524602,25.60717876,115.76,115.72,25.61007876]
[1743711524911,0.14216157,115.76,115.72,25.61007876]
[1743711525239,17.11074033,115.76,115.72,25.61007876]
[1743711526103,36.96857876,115.75,115.71,16.96857876]
[1743711526302,36.96857876,115.75,115.7,18.54307876]
[1743711526303,17.11074033,115.74,115.7,18.54307876]
[1743711526523,8.6408,115.73,115.69,25.61187876]
[1743711526726,25.75094033,115.74,115.7,16.96857876]
[1743711529441,25.75094033,115.74,115.7,25.61147876]
[1743711531235,8.78236157,115.74,115.7,25.61147876]
[1743711531409,17.11074033,115.74,115.7,25.61147876]
[1743711531938,0.14216157,115.74,115.7,25.61147876]
[1743711534043,25.75084033,115.74,115.7,8.6429]
[1743711534246,16.96857876,115.72,115.67,1.5312]
[1743711534412,16.96857876,115.7,115.65,8.6463]
[1743711534619,16.96857876,115.67,115.63,6.5789]
[1743711534931,16.96857876,115.67,115.63,23.54747876]
[1743711535123,16.96857876,115.67,115.63,32.19527876]
[1743711538642,25.61377876,115.67,115.63,32.19527876]
[1743711539022,16.96857876,115.67,115.63,32.19527876]
[1743711540146,16.96857876,115.67,115.63,15.2267]
[1743711540347,45.61397876,115.67,115.62,25.61707876]
[1743711540831,16.96857876,115.66,115.62,25.61707876]
[1743711542316,36.96857876,115.67,115.62,47.23957876]
[1743711542640,181.75474033,115.69,115.64,16.96857876]
[1743711542945,16.96857876,115.68,115.64,16.96857876]
[1743711543355,16.96857876,115.68,115.63,16.96857876]
[1743711543829,16.96857876,115.68,115.64,8.6475]
[1743711543830,25.61337876,115.68,115.64,8.6475]
[1743711544630,16.96857876,115.67,115.64,8.6475]
[1743711552061,25.61387876,115.67,115.63,25.61647876]
[1743711552367,16.96857876,115.66,115.61,18.56497876]
[1743711552654,16.96857876,115.65,115.61,1.5964]
[1743711552856,36.96857876,115.65,115.61,10.2458]
[1743711553151,16.96857876,115.64,115.59,25.61977876]
[1743711553656,20.0,115.65,115.59,25.61977876]
[1743711553657,16.96857876,115.63,115.59,25.61977876]
[1743711554356,25.61697876,115.63,115.59,25.61977876]
[1743711554653,16.96857876,115.63,115.59,25.61977876]
[1743711559361,17.11074033,115.64,115.59,25.61977876]
[1743711559759,152.96857876,115.66,115.61,16.96857876]
[1743711559962,136.0,115.66,115.63,16.96857876]
[1743711560264,37.11074033,115.67,115.63,16.96857876]
[1743711560843,36.96857876,115.67,115.63,16.96857876]
[1743711561043,20.0,115.67,115.63,16.96857876]
[1743711561544,36.96857876,115.67,115.64,8.6475]
[1743711564080,37.11074033,115.69,115.64,25.61607876]
[1743711564362,37.11074033,115.69,115.65,16.96857876]
[1743711565765,37.11074033,115.69,115.66,8.646]
[1743711566071,36.96857876,115.69,115.66,8.646]
[1743711567355,17.11074033,115.7,115.66,8.646]
[1743711568258,16.96857876,115.69,115.66,8.646]
[1743711568455,16.96857876,115.69,115.65,8.6464]
[1743711569672,25.61237876,115.69,115.65,8.6464]
[1743711570047,0.14216157,115.68,115.64,25.61577876]
[1743711570251,16.96857876,115.67,115.64,8.6472]
[1743711571278,45.75524033,115.68,115.64,8.6472]
[1743711574483,16.96857876,115.69,115.64,25.61577876]
[1743711574667,16.96857876,115.69,115.65,16.96857876]
[1743711574668,0.14216157,115.69,115.65,16.96857876]
[1743711575562,0.14216157,115.69,115.66,8.646]
[1743711577379,25.75444033,115.69,115.66,8.646]
[1743711577682,17.11074033,115.69,115.65,8.6467]
[1743711581183,25.75454033,115.69,115.65,8.6467]
[1743711581592,17.11074033,115.69,115.65,8.6467]
[1743711582896,28.6432,115.7,115.65,47.23217876]
[1743711582897,36.96857876,115.7,115.65,47.23217876]
[1743711583998,45.61167876,115.7,115.65,47.23217876]
[1743711584294,16.96857876,115.69,115.65,25.61527876]
[1743711586300,25.61237876,115.69,115.64,25.61567876]
[1743711586674,16.96857876,115.67,115.63,10.2194]
[1743711586991,37.11074033,115.66,115.62,25.61717876]
[1743711587186,16.96857876,115.65,115.61,16.96857876]
[1743711587902,16.96857876,115.65,115.6,23.62487876]
[1743711588078,16.96857876,115.64,115.61,8.6493]
[1743711589188,25.61607876,115.65,115.61,8.6493]
[1743711591100,16.96857876,115.65,115.61,8.6493]
[1743711591789,25.61537876,115.65,115.61,8.6493]
[1743711592592,16.96857876,115.65,115.61,8.6493]
[1743711592987,16.96857876,115.65,115.61,25.61787876]
[1743711594378,16.96857876,115.65,115.61,8.6493]
[1743711594588,25.61527876,115.65,115.61,8.6493]
[1743711600209,16.96857876,115.65,115.61,8.6493]
[1743711601626,25.61537876,115.65,115.61,8.6493]
[1743711605123,16.96857876,115.65,115.61,8.6493]
[1743711605293,16.96857876,115.65,115.61,25.61787876]
[1743711610008,25.61537876,115.65,115.61,8.6493]
[1743711610395,16.96857876,115.64,115.61,8.6493]
[1743711610710,8.6468,115.65,115.58,8.6513]
[1743711610711,16.96857876,115.62,115.58,8.6513]
[1743711610902,27.88216157,115.63,115.58,8.6513]
[1743711611099,16.96857876,115.62,115.58,8.6513]
[1743711611414,16.96857876,115.62,115.58,25.61987876]
[1743711613518,16.96857876,115.62,115.58,8.6513]
[1743711614426,44.85074033,115.63,115.58,25.61987876]
[1743711614597,44.85074033,115.63,115.59,16.96857876]
[1743711615724,44.85074033,115.63,115.6,8.6505]
[1743711620416,44.85074033,115.63,115.59,8.6512]
[1743711622514,27.74,115.63,115.6,16.96857876]
[1743711622830,136.0,115.64,115.61,16.96857876]
[1743711623016,37.11074033,115.65,115.61,16.96857876]
[1743711623798,20.14216157,115.65,115.61,16.96857876]
[1743711624005,20.14216157,115.65,115.62,8.649]
[1743711624325,17.11074033,115.66,115.62,30.2715]
[1743711624507,36.96857876,115.67,115.63,16.96857876]
[1743711626821,36.96857876,115.67,115.64,8.6475]
[1743711627200,16.96857876,115.65,115.6,23.2521]
[1743711627395,16.96857876,115.65,115.61,16.96857876]
[1743711627594,36.96857876,115.65,115.61,16.96857876]
[1743711628315,36.96857876,115.65,115.61,25.61827876]
[1743711630729,36.96857876,115.65,115.61,47.24267876]
[1743711630912,36.96857876,115.67,115.62,16.96857876]
[1743711631225,20.0,115.67,115.63,16.96857876]
[1743711632719,20.0,115.67,115.64,8.6475]
[1743711633904,20.0,115.67,115.64,25.61607876]
[1743711634119,0.14216157,115.69,115.66,16.96857876]
[1743711634312,0.14216157,115.69,115.65,16.96857876]
[1743711634912,36.96857876,115.7,115.66,25.61457876]
[1743711635519,167.30654033,115.71,115.66,25.61457876]
[1743711635823,53.5522,115.73,115.69,16.96857876]
[1743711635824,0.14216157,115.73,115.69,16.96857876]
[1743711636328,0.14216157,115.73,115.7,16.96857876]
[1743711637629,0.14216157,115.73,115.7,25.61117876]
[1743711638331,8.78296157,115.73,115.69,25.61217876]
[1743711638625,0.14216157,115.73,115.69,25.61217876]
[1743711645545,25.75164033,115.73,115.69,25.61217876]
[1743711645733,25.75164033,115.73,115.69,8.6436]
[1743711646240,17.11074033,115.73,115.69,16.96857876]
[1743711647325,0.14216157,115.73,115.69,16.96857876]
[1743711648745,0.14216157,115.73,115.7,8.643]
[1743711649655,8.78306157,115.73,115.69,25.61197876]
[1743711654244,38.62507876,115.76,115.71,16.96857876]
[1743711654439,38.62507876,115.76,115.7,8.6428]
[1743711654440,20.0,115.76,115.73,16.96857876]
[1743711654646,16.50036157,115.77,115.73,16.96857876]
[1743711654847,8.78036157,115.77,115.73,16.96857876]
[1743711655140,55.61822762,115.78,115.75,16.96857876]
[1743711655141,20.0,115.78,115.75,16.96857876]
[1743711655333,0.14216157,115.79,115.75,16.96857876]
[1743711656125,0.14216157,115.79,115.76,25.60707876]
[1743711657022,8.77846157,115.79,115.75,25.60737876]
[1743711657220,25.74704033,115.79,115.75,16.96857876]
[1743711657749,25.74704033,115.79,115.75,25.60777876]
[1743711659047,25.74704033,115.79,115.75,16.96857876]
[1743711659545,37.11074033,115.78,115.74,16.96857876]
[1743711659852,20.14216157,115.76,115.72,27.11487876]
[1743711660027,37.11074033,115.76,115.72,25.60977876]
[1743711660645,37.11074033,115.76,115.71,16.96857876]
[1743711660947,20.0,115.74,115.71,16.96857876]
[1743711661150,20.0,115.74,115.71,25.61057876]
[1743711661648,20.0,115.74,115.72,16.96857876]
[1743711663059,0.14216157,115.73,115.69,1.5603]
[1743711663348,0.14216157,115.73,115.69,16.96857876]
[1743711663349,17.11074033,115.73,115.69,16.96857876]
[1743711664845,25.75164033,115.73,115.69,25.61187876]
[1743711665047,36.96857876,115.72,115.66,7.8149]
[1743711665232,17.11074033,115.71,115.67,16.96857876]
[1743711666333,25.75354033,115.71,115.67,16.96857876]
[1743711667541,25.75354033,115.71,115.66,27.20657876]
[1743711667746,36.96857876,115.7,115.66,16.96857876]
[1743711668327,36.96857876,115.68,115.63,6.3317]
[1743711668532,36.96857876,115.68,115.64,16.96857876]
[1743711668755,0.14216157,115.67,115.63,25.61677876]
[1743711669664,8.78766157,115.67,115.63,25.61677876]
[1743711669844,25.75624033,115.67,115.63,25.61677876]
[1743711670038,0.14216157,115.67,115.63,25.61677876]
[1743711670251,0.14216157,115.67,115.64,16.96857876]
[1743711670936,36.96857876,115.68,115.64,16.96857876]
[1743711671141,20.0,115.7,115.67,16.96857876]
[1743711671333,0.14216157,115.71,115.68,16.96857876]
[1743711671734,0.14216157,115.71,115.68,8.6444]
[1743711671953,0.14216157,115.71,115.67,25.61337876]
[1743711674131,0.14216157,115.73,115.69,16.96857876]
[1743711674335,20.0,115.74,115.7,16.96857876]
[1743711674530,36.96857876,115.74,115.7,16.96857876]
[1743711676264,36.96857876,115.74,115.71,8.6422]
[1743711676440,0.14216157,115.73,115.7,16.96857876]
[1743711676640,20.0,115.72,115.69,16.96857876]
[1743711676845,0.14216157,115.71,115.68,8.6441]
[1743711677049,17.11074033,115.71,115.67,25.61337876]
[1743711678257,25.75314033,115.71,115.67,25.61337876]
[1743711679670,35.29282973,115.71,115.67,26.50826816]
[1743711679840,8.78456157,115.71,115.67,26.50826816]
[1743711681559,0.14216157,115.71,115.67,26.50826816]
[1743711681751,20.0,115.72,115.69,35.15196816]
[1743711682060,28.6404,115.74,115.7,26.50826816]
[1743711682248,55.14826816,115.74,115.7,26.50826816]
[1743711683772,55.14826816,115.74,115.69,35.15196816]
[1743711686642,55.14826816,115.74,115.69,26.50826816]
[1743711686643,26.65042973,115.73,115.69,26.50826816]
[1743711686966,26.65042973,115.73,115.69,35.15196816]
[1743711687163,0.14216157,115.73,115.69,35.15196816]
[1743711688550,8.78296157,115.73,115.69,35.15196816]
[1743711690575,0.14216157,115.73,115.69,35.15196816]
[1743711690967,0.14216157,115.75,115.71,26.50826816]
[1743711691160,73.79671702,115.76,115.69,10.3099]
[1743711691161,20.0,115.76,115.72,26.50826816]
[1743711691362,0.14216157,115.77,115.73,26.50826816]
[1743711691554,48.88864886,115.78,115.74,26.50826816]
[1743711691558,20.0,115.78,115.74,26.50826816]
[1743711691958,20.0,115.78,115.75,8.6393]
[1743711693677,28.6371,115.78,115.74,35.14786816]
[1743711693878,55.14536816,115.78,115.74,35.14786816]
[1743711694951,28.6371,115.78,115.74,35.14786816]
[1743711695368,35.28712973,115.79,115.74,35.14786816]
[1743711695776,35.28712973,115.79,115.75,26.50826816]
[1743711696275,35.28712973,115.79,115.74,35.14786816]
[1743711699679,25.7218779,115.79,115.74,16.94301633]
[1743711700875,25.7218779,115.79,115.74,25.58241633]
[1743711701258,25.7218779,115.79,115.74,16.94301633]
[1743711701259,20.14216157,115.78,115.74,16.94301633]
[1743711701456,16.94301633,115.77,115.72,25.58441633]
[1743711702469,8.6385,115.76,115.72,25.58441633]
[1743711704181,20.14216157,115.78,115.74,16.94301633]
[1743711704685,0.14216157,115.79,115.75,16.94301633]
[1743711704885,8.77846157,115.79,115.75,16.94301633]
[1743711707191,8.77846157,115.79,115.75,25.58161633]
[1743711708191,45.57891633,115.8,115.76,16.94301633]
[1743711709300,45.57891633,115.8,115.76,25.58131633]
[1743711710197,0.14216157,115.81,115.77,16.94301633]
[1743711710499,28.6344,115.82,115.78,16.94301633]
[1743711710987,8.77586157,115.83,115.79,16.94301633]
[1743711711180,8.6337,115.83,115.79,16.94301633]
[1743711711381,8.6337,115.83,115.79,25.57881633]
[1743711712688,8.6337,115.83,115.8,16.94301633]
[1743711713782,8.6337,115.83,115.79,16.94301633]
[1743711714474,8.6337,115.83,115.78,16.94301633]
[1743711714475,25.57671633,115.83,115.78,16.94301633]
[1743711716774,47.16001633,115.83,115.78,16.94301633]
[1743711716976,37.0851779,115.82,115.78,16.94301633]
[1743711718001,8.6348,115.81,115.78,16.94301633]
[1743711718202,8.6348,115.81,115.77,16.94301633]
[1743711718809,25.57781633,115.81,115.76,16.94301633]
[1743711719479,37.0851779,115.8,115.76,16.94301633]
[1743711719678,37.0851779,115.8,115.75,25.58191633]
[1743711720098,8.6363,115.79,115.75,25.58191633]
[1743711720299,8.6363,115.79,115.75,16.94301633]
[1743711720492,37.0851779,115.78,115.74,18.49381633]
[1743711720686,20.14216157,115.76,115.72,16.94301633]
[1743711721010,16.94301633,115.77,115.73,16.94301633]
[1743711721900,26.62297279,115.77,115.73,26.48081122]
[1743711722110,35.26077279,115.77,115.73,35.12111122]
[1743711724307,35.26077279,115.77,115.73,26.48081122]
[1743711725001,35.26077279,115.77,115.72,35.12191122]
[1743711725198,46.48081122,115.76,115.72,26.48081122]
[1743711725710,46.48081122,115.76,115.71,10.2051]
[1743711725905,46.48081122,115.76,115.71,36.68591122]
[1743711726295,8.6393,115.75,115.71,36.68591122]
[1743711728996,28.6387,115.76,115.72,26.48081122]
[1743711729893,28.6387,115.76,115.72,35.12191122]
[1743711732016,20.0,115.76,115.72,35.12191122]
[1743711733711,53.91062165,115.77,115.73,26.48081122]
[1743711733712,26.48081122,115.77,115.73,26.48081122]
[1743711733913,191.11821122,115.78,115.74,8.64]
[1743711734215,164.6374,115.78,115.74,8.64]
[1743711734415,164.6374,115.78,115.74,35.12081122]
[1743711734794,191.11821122,115.78,115.74,35.12081122]
[1743711735112,191.11821122,115.78,115.73,35.12111122]
[1743711735298,26.48081122,115.77,115.72,35.12191122]
[1743711736526,8.6385,115.76,115.72,35.12191122]
[1743711738025,35.11901122,115.77,115.72,35.12191122]
[1743711738318,35.11901122,115.77,115.73,26.48081122]
[1743711738517,35.11901122,115.77,115.73,35.12111122]
[1743711739218,35.11901122,115.77,115.73,26.48081122]
[1743711739622,35.11901122,115.77,115.72,35.12191122]
[1743711740199,46.62297279,115.76,115.71,36.68601122]
[1743711740899,46.62297279,115.76,115.69,35.12451122]
[1743711740900,46.62297279,115.74,115.69,35.12451122]
[1743711741620,7.7,115.75,115.71,26.48081122]
[1743711741823,7.7,115.75,115.72,26.48081122]
[1743711742010,55.11951122,115.76,115.72,26.48081122]
[1743711742322,28.6387,115.76,115.72,26.48081122]
[1743711742708,28.6387,115.76,115.72,35.12161122]
[1743711743021,20.0,115.76,115.72,35.12161122]
[1743711743926,20.0,115.76,115.72,25.58983439]
[1743711748024,25.72899596,115.77,115.72,25.58983439]
[1743711748625,17.09119596,115.77,115.72,25.58983439]
[1743711748821,0.14216157,115.77,115.73,16.94903439]
[1743711749130,16.94903439,115.79,115.75,16.94903439]
[1743711750230,16.94903439,115.79,115.76,8.6385]
[1743711754035,16.94903439,115.79,115.76,8.6385]
[1743711754533,16.94903439,115.79,115.75,25.58803439]
[1743711754906,0.14216157,115.78,115.75,16.94903439]
[1743711755111,16.94903439,115.77,115.72,24.57753439]
[1743711755842,16.94903439,115.77,115.72,27.13863439]
[1743711757239,25.58723439,115.77,115.72,27.13863439]
[1743711758240,25.58723439,115.77,115.73,25.58923439]
[1743711758441,45.72859596,115.78,115.74,16.94903439]
[1743711759440,45.72859596,115.78,115.74,25.58843439]
[1743711760339,28.77956157,115.78,115.74,25.58843439]
[1743711760842,20.14216157,115.78,115.74,25.58843439]
[1743711761016,164.6359,115.8,115.75,16.94903439]
[1743711761215,45.58493439,115.8,115.75,16.94903439]
[1743711761635,45.58493439,115.8,115.76,8.6385]
[1743711765841,16.94903439,115.8,115.76,25.58753439]
[1743711766343,25.72629596,115.81,115.76,25.58753439]
[1743711767146,26.0,115.78,115.77,16.94903439]
[1743711768550,26.0,115.78,115.76,16.94903439]
[1743711769335,26.0,115.78,115.76,25.58683439]
[1743711770430,26.0,115.77,115.75,25.58803439]
[1743711770653,26.0,115.77,115.74,25.58903439]
[1743711772859,34.638,115.77,115.73,39.79593439]
[1743711773166,34.638,115.77,115.73,33.28913439]
[1743711773469,51.58703439,115.77,115.73,25.58913439]
[1743711773838,42.94903439,115.77,115.73,25.58913439]
[1743711774040,26.0,115.77,115.73,25.58913439]
[1743711775157,36.94903439,115.78,115.73,25.58913439]
[1743711775341,20.0,115.78,115.74,16.94903439]
[1743711775543,44.23538325,115.79,115.74,16.94903439]
[1743711776061,44.23538325,115.79,115.75,8.6393]
[1743711776272,27.28634886,115.79,115.75,8.6393]
[1743711776442,44.23538325,115.79,115.75,8.6393]
[1743711780372,164.6359,115.8,115.75,25.58833439]
[1743711780549,28.6359,115.8,115.76,16.94903439]
[1743711781347,44.37604482,115.81,115.76,16.94903439]
[1743711781547,27.42551043,115.83,115.78,16.94903439]
[1743711781878,18.79181043,115.83,115.79,16.94903439]
[1743711782057,45.58203439,115.84,115.79,16.94903439]
[1743711782444,45.58203439,115.84,115.8,8.6355]
[1743711784371,8.6322,115.85,115.8,25.58453439]
[1743711784548,47.23223439,115.86,115.81,16.94903439]
[1743711784877,16.94903439,115.85,115.81,16.94903439]
[1743711786252,16.94903439,115.85,115.8,25.58453439]
[1743711786459,25.58153439,115.85,115.8,25.58453439]
[1743711790960,16.94903439,115.86,115.81,16.94903439]
[1743711791161,27.42261043,115.87,115.82,16.94903439]
[1743711791475,44.37164482,115.87,115.82,16.94903439]
[1743711791659,16.94903439,115.86,115.82,16.94903439]
[1743711792172,25.57983439,115.87,115.83,8.6333]
[1743711793256,16.94903439,115.88,115.84,16.94903439]
[1743711793457,25.57823439,115.89,115.84,16.94903439]
[1743711794264,25.57823439,115.89,115.85,8.6318]
[1743711795578,16.94903439,115.89,115.85,8.6318]
[1743711795781,8.6288,115.89,115.85,8.6318]
[1743711795979,25.57783439,115.89,115.85,8.6318]
[1743711796275,25.57783439,115.89,115.85,25.58083439]
[1743711797181,41.5674,115.92,115.85,10.1814]
[1743711797368,36.94903439,115.92,115.87,16.94903439]
[1743711798287,16.94903439,115.9,115.86,16.94903439]
[1743711799463,25.57753439,115.9,115.86,16.94903439]
[1743711800172,25.57753439,115.9,115.85,18.49863439]
[1743711800379,16.94903439,115.89,115.85,18.49863439]
[1743711801281,25.57713439,115.9,115.85,18.49863439]
[1743711801592,16.94903439,115.89,115.85,18.49863439]
[1743711802083,16.94903439,115.89,115.85,27.13043439]
[1743711802286,45.57713439,115.9,115.85,27.13043439]
[1743711803984,45.57713439,115.9,115.85,18.49863439]
[1743711805490,45.57713439,115.9,115.85,27.13033439]
[1743711805873,25.57843439,115.89,115.85,1.5496]
[1743711806663,25.57843439,115.89,115.85,10.1813]
[1743711807774,25.57843439,115.89,115.85,1.5496]
[1743711808092,25.57843439,115.89,115.85,10.1813]
[1743711808871,25.57843439,115.89,115.85,27.13033439]
[1743711809701,25.57843439,115.89,115.85,1.5496]
[1743711809903,16.94903439,115.87,115.83,33.28193439]
[1743711810193,16.94903439,115.85,115.79,8.2402]
[1743711810362,16.94903439,115.85,115.8,25.58453439]
[1743711810762,226.71181043,115.88,115.81,16.94903439]
[1743711810967,16.94903439,115.86,115.82,16.94903439]
[1743711811279,16.94903439,115.87,115.82,16.94903439]
[1743711811685,25.57963439,115.87,115.82,25.58263439]
[1743711811888,16.94903439,115.86,115.82,25.58263439]
[1743711812391,16.94903439,115.86,115.81,25.86775753]
[1743711812694,16.94903439,115.86,115.81,16.94903439]
[1743711812870,16.94903439,115.85,115.81,16.94903439]
[1743711813396,16.94903439,115.85,115.8,25.58413439]
[1743711813574,8.6325,115.84,115.8,25.58413439]
[1743711813775,8.6325,115.84,115.81,16.94903439]
[1743711814893,8.6322,115.85,115.81,16.94903439]
[1743711815895,8.6322,115.85,115.81,25.58343439]
[1743711819603,25.58123439,115.85,115.8,25.58453439]
[1743711820694,16.94903439,115.84,115.8,8.6355]
[1743711821003,16.94903439,115.84,115.8,25.58453439]
[1743711821683,25.58213439,115.84,115.79,16.8761]
[1743711821884,28.6331,115.84,115.78,24.62903439]
[1743711822097,16.94903439,115.83,115.78,33.26573439]
[1743711822410,16.94903439,115.83,115.79,16.94903439]
[1743711823702,16.94903439,115.83,115.8,8.6355]
[1743711824103,8.6303,115.87,115.82,16.94903439]
[1743711824400,16.94903439,115.87,115.82,16.94903439]
[1743711824577,16.94903439,115.86,115.82,16.94903439]
[1743711825806,25.58023439,115.86,115.82,25.58263439]
[1743711826179,25.58023439,115.86,115.82,8.6336]
[1743711826501,16.94903439,115.85,115.81,10.1468]
[1743711826690,16.94903439,115.84,115.8,6.5277]
[1743711826894,16.94903439,115.84,115.8,8.6355]